Cogmind - Beta 13 @@@ ROGUE MODE // 2024.06.21 @ 17:41:05 Player: morimori Result: Destroyed by AG-43878 with Assembled Focal Cannon Performance ------------- Evolutions (3) 1500 Regions Visited (9) 1800 Robots Destroyed (67) 335 Value Destroyed (2132) 2132 Prototype IDs (32) 640 Alien Tech Used (0) 0 Bonus (834) 834 TOTAL SCORE: 7241 Bonus ------- Destroyed Z-Imprinter 1000 Friendly Fire -166 Cogmind --------- Core Integrity 0/700 Matter 133/300 Energy 100/100 System Corruption 0% Temperature Cool (28) Movement Walking (210) Ox1 Location -7/Deep Caves Parts ------- > --- POWER (1) -------- (None) > --- PROPULSION (4) --- Zionite Composite Leg I > --- UTILITY (6) ------ Improved Heat Sink High-capacity Storage Unit Improved Signal Interpreter Makeshift Hacking Suite > --- WEAPON (2) ------- (None) > --- INVENTORY (20) --- Improved Deuterium Engine Zionite Light DM Reactor Carbon-fiber Leg Carbon-fiber Leg Cargo Legs Zionite Biocell (600) Compact Matter Pod (147) Experimental Sensor Array Makeshift Hacking Suite Makeshift Hacking Suite Zionite Phaser-S Zionite Phaser-S Gauss Rifle Gauss Rifle Mini Assault Cannon Shock Bomb Launcher Power Maul Peak State ------------ > --- POWER ------------ Zionite Light DM Reactor > --- PROPULSION ------- Carbon-fiber Leg Improved Titanium Leg Zionite Composite Leg I Zionite Composite Leg I > --- UTILITY ---------- High-capacity Storage Unit Experimental Sensor Array Improved Signal Interpreter Zionite Heavy Carapace Makeshift Hacking Suite > --- WEAPON ----------- Zionite Laser-S Zionite Phaser-S > --- INVENTORY -------- Improved Deuterium Engine Zionite Light DM Reactor Carbon-fiber Leg Carbon-fiber Leg Cargo Legs Improved Heat Sink Improved Heat Sink Zionite Biocell Compact Matter Pod Zionite Weapon Casing Makeshift Hacking Suite Makeshift Hacking Suite Zionite Phaser-S Zionite Phaser-S Gauss Rifle Gauss Rifle Mini Assault Cannon Shock Bomb Launcher Power Maul [Rating: 78] Favorites ----------- Power Improved Deuterium Engine Engine Improved Deuterium Engine Power Core Light Nuclear Core Reactor Zionite Light DM Reactor Propulsion Improved Carbon-fiber Leg Leg Improved Carbon-fiber Leg Wheel Compact Wheel Hover Unit Zionite Glidesys I Utility Improved Signal Interpreter Device Experimental Sensor Array Storage High-capacity Storage Unit Processor Improved Signal Interpreter Hackware Hacking Suite Protection Hardened Medium Armor Plating Weapon Gauss Rifle Energy Gun Particle Gun Energy Cannon Subdweller Beam Cannon Ballistic Gun Gauss Rifle Ballistic Cannon Mini Assault Cannon Launcher Grenade Launcher Impact Weapon Power Maul Build | -11 -10 -10 -10 -8 -7 -7 -7 -7 -7 ------- Run | Yrd Mat Min Sub Mat Fac Low Low Zio Dee Slots Evolved 6 | . . . . 4 2 . . . . Power . | . . . . . . . . . . Propulsion 2 | . . . . 2 . . . . . Utility 4 | . . . . 2 2 . . . . Weapon . | . . . . . . . . . . Parts Attached 150 | 8 7 3 7 23 51 4 4 6 37 Power 8 | 1 . . 2 2 1 . . . 2 Engine 5 | 1 . . 1 1 1 . . . 1 Core 2 | . . . 1 1 . . . . . Reactor 1 | . . . . . . . . . 1 Propulsion 25 | 2 1 . . 8 7 1 . . 6 Treads . | . . . . . . . . . . Leg 18 | . . . . 5 7 1 . . 5 Wheel 6 | 2 1 . . 3 . . . . . Hover 1 | . . . . . . . . . 1 Flight . | . . . . . . . . . . Utility 71 | 2 3 2 . 7 26 3 4 3 21 Device 40 | 1 . 2 . 5 15 2 3 2 10 Storage 6 | 1 3 . . . 1 . . . 1 Processor 4 | . . . . 1 3 . . . . Hackware 2 | . . . . . 1 . . 1 . Protection 19 | . . . . 1 6 1 1 . 10 Artifact . | . . . . . . . . . . Weapon 46 | 3 3 1 5 6 17 . . 3 8 Energy Gun 9 | 2 3 . 1 . 1 . . . 2 Energy Cannon 1 | . . . 1 . . . . . . Ballistic Gun 19 | 1 . . 1 4 9 . . 1 3 Ballistic Cannon 3 | . . . 1 . 1 . . 1 . Launcher 7 | . . 1 . 1 2 . . . 3 Special Weapon . | . . . . . . . . . . Impact Weapon 7 | . . . 1 1 4 . . 1 . Slashing Weapon . | . . . . . . . . . . Piercing Weapon . | . . . . . . . . . . Special Melee Weapon . | . . . . . . . . . . Unidentified Prototypes 15 | . . 1 . 1 3 . . 1 9 Parts Lost 21 | . . . 3 2 . . . . 16 Power 4 | . . . 2 . . . . . 2 Propulsion 6 | . . . . 2 . . . . 4 Utility 7 | . . . . . . . . . 7 Weapon 4 | . . . 1 . . . . . 3 Highest Loss Streak 9 | . . . 3 1 . . . . 9 To Critical Strikes . | . . . . . . . . . . Average Slot Usage (%) 98 | . 100 100 99 95 99 99 99 99 94 Engine 6 | . 14 14 10 1 7 7 7 7 4 Core 1 | . . . 3 7 . . . . . Leg 22 | . . . . 16 29 30 30 30 29 Wheel 7 | . 28 28 28 17 . . . . . Device 13 | . 14 14 14 14 14 13 14 15 8 Storage 8 | . 14 14 14 9 7 7 7 7 7 Processor 9 | . . . . 2 15 15 15 15 9 Hackware 4 | . . . . . 4 7 7 7 7 Protection 2 | . . . . 8 2 . . . 6 Energy Gun 3 | . 14 14 10 . . . . . 5 Ballistic Gun 8 | . 14 6 1 16 9 7 7 6 4 Ballistic Cannon 2 | . . . 4 . 2 7 7 6 . Launcher 1 | . . 7 5 . . . . . 3 Naked Turns . | . . . . . . . . . . Heaviest Build 106 | 14 90 92 97 105 106 78 60 60 83 Greatest Support 86 | 32 32 32 32 32 74 71 71 71 86 Greatest Overweight (x) 6 | . 2 2 3 6 5 1 . . 2 Average Overweight (x) . | . . 2 2 3 . . . . . Largest Inventory Capacity 25 | 8 25 25 25 25 25 20 20 20 20 Average Capacity 20 | 7 16 25 25 25 20 20 20 20 20 Most Carried 25 | 8 20 25 25 25 24 20 20 20 20 Average Carried 20 | 5 13 23 24 24 20 19 19 19 19 Final Capacity 25 | 8 25 25 25 25 20 20 20 20 20 Final Carried 25 | 8 20 24 25 25 20 20 20 20 18 Class Distribution -------------------- 39% | Mutant 29% | Scavenger-Skirmisher 12% | Scavenger-Mutant 11% | Assassin 6% | Skirmisher Dominant Class ---------------- Mutant | -10/Materials Mutant | -10/Mines Mutant | -10/Subcaves Scavenger-Mutant | -8/Materials Scavenger-Skirmisher | -7/Factory Scavenger-Skirmisher | -7/Lower Caves Scavenger-Skirmisher | -7/Lower Caves Scavenger-Skirmisher | -7/Zion Mutant | -7/Deep Caves Resources | -11 -10 -10 -10 -8 -7 -7 -7 -7 -7 ----------- Run | Yrd Mat Min Sub Mat Fac Low Low Zio Dee Matter Collected 3182 | 302 94 244 51 688 762 131 232 21 657 Remotely . | . . . . . . . . . . Salvage Created 3139 | 143 349 184 42 683 784 . 495 . 459 Parts 155 | 18 22 4 5 40 30 . 11 . 25 Haulers Intercepted 2 | . 1 . . 1 . . . . . Recyclers Shooed 5 | . 1 . . 2 2 . . . . Parts Field Recycled . | . . . . . . . . . . Retrieved Matter . | . . . . . . . . . . Parts Self-Destructed 6 | . . . . . . 3 3 . . Prevented 1 | . . . . . . 1 . . . Kills | -11 -10 -10 -10 -8 -7 -7 -7 -7 -7 ------- Run | Yrd Mat Min Sub Mat Fac Low Low Zio Dee Combat Hostiles Destroyed 47 | . 4 3 2 14 13 . 1 . 10 Melee 1 | . . . . . 1 . . . . Guns 26 | . 3 . . 11 12 . . . . Cannons 4 | . . . 2 1 . . 1 . . AOE 16 | . 1 3 . 2 . . . . 10 Classes Destroyed 14 | 3 4 1 1 2 2 . . . 1 Worker 5 | 2 1 . . 2 . . . . . Tunneler 4 | 4 . . . . . . . . . Hauler 2 | . 1 . . 1 . . . . . Recycler 4 | 1 1 . . . 2 . . . . Operator 1 | . 1 . . . . . . . . Watcher 3 | . 1 . . 1 1 . . . . Swarmer 10 | . . 3 . 3 4 . . . . Grunt 12 | . 4 . . 5 3 . . . . Duelist 3 | . . . . . 3 . . . . Sentry 5 | . . . . 5 . . . . . Hunter 1 | . . . . 1 . . . . . Programmer 4 | . . . . . 3 . 1 . . Subdweller 2 | . . . 2 . . . . . . Z-Light 10 | . . . . . . . . . 10 Butcher 1 | . . . . . . . . . 1 Best Kill Streak 5 | 4 4 3 2 5 4 . 1 . 5 Combat Bots Only 5 | . 2 3 2 5 4 . 1 . 5 Max Kills in Single Turn 2 | 1 2 1 1 2 2 . 1 . 2 Gunslinging . | . . . . . . . . . . Exploded 2 | . 1 1 . 2 . . . . 2 Melee 1 | . . . . . 1 . . . . Uniques/NPCs Destroyed 1 | . . . . . . . . . 1 Z-Imprinter (-7/Deep Caves) Combat | -11 -10 -10 -10 -8 -7 -7 -7 -7 -7 -------- Run | Yrd Mat Min Sub Mat Fac Low Low Zio Dee Hostile Shots Fired 260 | . 16 11 14 58 65 . 4 . 92 Missed 54 | . 3 4 5 16 8 . 1 . 17 Damage Taken 5040 | . 174 53 198 689 1165 . 44 . 2717 Core 926 | . 51 17 54 98 168 . . . 538 Absorbed by Shields . | . . . . . . . . . . Redirected to Shielding 419 | . . . . . . . . . 419 Regen/Repaired (Parts) 70 | . 26 . . 44 . . . . . Core Remaining (%) 77 | 100 . . 51 82 . . . . . Volleys Fired 262 | 26 24 9 16 55 40 1 22 22 47 Largest 2 | 2 2 2 2 2 2 2 2 1 2 Hottest 120 | 80 85 85 115 105 76 76 76 48 120 Shots Fired 420 | 30 48 13 25 108 69 2 37 22 66 Gun 306 | 30 48 8 7 104 55 1 15 . 38 Cannon 76 | . . . 15 2 14 1 22 22 . Launcher 38 | . . 5 3 2 . . . . 28 Special . | . . . . . . . . . . Kinetic 302 | 22 24 4 9 104 69 2 37 22 9 Thermal 48 | . 14 4 12 2 . . . . 16 Explosive 23 | . . 5 3 2 . . . . 13 Electromagnetic 34 | 8 10 . 1 . . . . . 15 Phasic 13 | . . . . . . . . . 13 Robot Hit Streak 20 | 6 14 2 7 20 11 . 11 . 7 Robot Miss Streak 6 | 1 4 3 1 4 3 . 4 . 6 Penetration Max 1 | . . . . . 1 . 1 . . Secondary Targets 2 | . 1 . . . 1 . . . . Max Gunslinging Chain 1 | . 1 . . . 1 . . . . Shots Hit Robots 238 | 24 35 3 10 76 42 . 21 . 27 Core Hits 137 | 14 15 5 4 34 24 . 11 . 30 Critical Kills . | . . . . . . . . . . Critical Parts Destroyed 6 | . . . . 2 4 . . . . Critical Strikes 8 | . 1 . . 2 4 . . . 1 Burn 1 | . 1 . . . . . . . . Destroy 4 | . . . . 2 2 . . . . Smash 2 | . . . . . 2 . . . . Intensify 1 | . . . . . . . . . 1 Melee Attacks 21 | . . . 2 1 15 . . 2 1 Impact 21 | . . . 2 1 15 . . 2 1 Slashing . | . . . . . . . . . . Piercing . | . . . . . . . . . . Sneak Attacks 2 | . . . . . 2 . . . . Combat Hostiles . | . . . . . . . . . . Follow-up Attacks . | . . . . . . . . . . Damage Inflicted 6937 | 219 544 289 193 1564 1316 . 636 . 2176 Guns 3820 | 219 419 39 51 1398 944 . 327 . 423 Cannons 573 | . . . 141 54 69 . 309 . . Explosions 2241 | . 125 250 1 112 . . . . 1753 Melee 303 | . . . . . 303 . . . . Ramming . | . . . . . . . . . . Kinetic 3518 | 151 137 9 82 1398 1013 . 636 . 92 Thermal 646 | . 286 30 110 54 . . . . 166 Explosive 1649 | . . 250 1 112 . . . . 1286 Electromagnetic 656 | 68 121 . . . . . . . 467 Impact 303 | . . . . . 303 . . . . Slashing . | . . . . . . . . . . Piercing . | . . . . . . . . . . Phasic 165 | . . . . . . . . . 165 Highest Corruption 5 | . . . . . 5 2 1 1 . Average Corruption 1 | . . . . . 2 1 1 1 . Corruption Purged 7 | . . . . . 5 2 . . . Corruption Blocked . | . . . . . . . . . . Effects 10 | . . . . . 6 2 1 1 . Message Errors 2 | . . . . . 1 . 1 . . Matter Fused 2 | . . . . . 1 . . 1 . Heat Flow Errors 2 | . . . . . 1 1 . . . Energy Discharges 3 | . . . . . 2 1 . . . Misfires 1 | . . . . . 1 . . . . Overload Shots . | . . . . . . . . . . Overflow Damage 350 | . 9 47 . 13 201 . 38 . 42 Projectiles 38 | . . . . . . . 38 . . Explosions 111 | . 9 47 . 13 . . . . 42 Melee 201 | . . . . . 201 . . . . Knockbacks 3 | . . . 1 . 2 . . . . Impact 1 | . . . . . 1 . . . . Kinetic 2 | . . . 1 . 1 . . . . Secondary . | . . . . . . . . . . Self-Inflicted Damage 33 | . . . . 33 . . . . . Shots 2 | . . . . 2 . . . . . Rammed . | . . . . . . . . . . Targets Rammed . | . . . . . . . . . . Kicked . | . . . . . . . . . . Crushed . | . . . . . . . . . . Highest Temperature 306 | 36 247 68 28 55 166 246 72 . 306 Average Temperature 57 | 16 75 29 11 10 28 128 38 . 80 Received Heat Transfer 1068 | . 120 . 33 297 45 . . . 573 Effects 5 | . . . . . . . . . 5 Energy Bleed 1 | . . . . . . . . . 1 Interference 4 | . . . . . . . . . 4 Siege Activations . | . . . . . . . . . . Robots Corrupted . | . . . . . . . . . . Combat Hostiles . | . . . . . . . . . . Parts Fried 10 | 1 1 . . . 5 . . . 3 Impact Corruptions 5 | . . . . . 5 . . . . Robots Melted . | . . . . . . . . . . Combat Hostiles . | . . . . . . . . . . Parts Melted 1 | . . . 1 . . . . . . Heat Transferred 1236 | . 644 74 185 74 . . . . 259 Parts Sabotaged . | . . . . . . . . . . Parts Stolen . | . . . . . . . . . . Parts Stripped . | . . . . . . . . . . Power Chain Reactions 4 | . 3 . . . . . . . 1 Alert | -11 -10 -10 -10 -8 -7 -7 -7 -7 -7 ------- Run | Yrd Mat Min Sub Mat Fac Low Low Zio Dee Peak Influence 371 | 35 189 130 . 371 119 . . . . Initial 117 | . 22 23 . . 117 . . . . Average 73 | 18 87 42 . 119 56 . . . . Maximum Alert Level 1 | . . . . 1 . . . . . Low Security (%) 93 | 100 100 100 . 75 100 . . . . Level 1 6 | . . . . 24 . . . . . Level 2 . | . . . . . . . . . . Level 3 . | . . . . . . . . . . Level 4 . | . . . . . . . . . . Level 5 . | . . . . . . . . . . High Security . | . . . . . . . . . . Max Security . | . . . . . . . . . . Squads Dispatched 6 | . 1 . . . 5 . . . . Investigation 2 | . . . . . 2 . . . . Extermination 3 | . . . . . 3 . . . . Reinforcement 1 | . 1 . . . . . . . . Assault . | . . . . . . . . . . Garrison . | . . . . . . . . . . Intercept . | . . . . . . . . . . Searches Triggered . | . . . . . . . . . . Construction Impeded . | . . . . . . . . . . Haulers Reinforced . | . . . . . . . . . . Active Scanning Responses . | . . . . . . . . . . Cargo Convoy Interrupts . | . . . . . . . . . . Stealth | -11 -10 -10 -10 -8 -7 -7 -7 -7 -7 --------- Run | Yrd Mat Min Sub Mat Fac Low Low Zio Dee Distress Signals 5 | . 2 . . 3 . . . . . Communications Jammed . | . . . . . . . . . . Distress Signals . | . . . . . . . . . . Times Spotted 73 | . 15 3 2 24 14 . 1 . 14 Peak Tracking Total 5 | . 3 3 2 4 4 . 1 . 5 Tactical Retreats 2 | . . . . 2 . . . . . Traps | -11 -10 -10 -10 -8 -7 -7 -7 -7 -7 ------- Run | Yrd Mat Min Sub Mat Fac Low Low Zio Dee Traps Triggered 2 | . . . . . 2 . . . . Indirectly . | . . . . . . . . . . Trap Hack Attempts . | . . . . . . . . . . Triggered . | . . . . . . . . . . Disarmed . | . . . . . . . . . . Reprogrammed . | . . . . . . . . . . Reused . | . . . . . . . . . . Traps Extracted . | . . . . . . . . . . Installed . | . . . . . . . . . . Triggered 1 | . . . . . . 1 . . . Machines | -11 -10 -10 -10 -8 -7 -7 -7 -7 -7 ---------- Run | Yrd Mat Min Sub Mat Fac Low Low Zio Dee Machines Disabled 6 | . 1 . 1 1 1 . . . 2 Max in Single Turn 1 | . 1 . 1 1 1 . . . 1 Garrison Access 1 | . . . . 1 . . . . . Machines Repaired . | . . . . . . . . . . Machines Dismantled . | . . . . . . . . . . Machines Sabotaged . | . . . . . . . . . . Overloaded Fab Kills . | . . . . . . . . . . Hacking | -11 -10 -10 -10 -8 -7 -7 -7 -7 -7 --------- Run | Yrd Mat Min Sub Mat Fac Low Low Zio Dee Machines Accessed 27 | . 2 . 1 12 12 . . . . Terminals 17 | . 1 . . 8 8 . . . . Fabricators 2 | . . . . . 2 . . . . Repair Stations 3 | . 1 . . 2 . . . . . Recycling Units 2 | . . . . . 2 . . . . Scanalyzers 1 | . . . . 1 . . . . . Garrison Access 1 | . . . . 1 . . . . . Total Hacks 86 | . 5 . 9 41 31 . . . . Successful 52 | . 3 . 9 22 18 . . . . Failed 33 | . 2 . . 18 13 . . . . Catastrophic 3 | . . . . 2 1 . . . . Database Lockouts 1 | . . . . 1 . . . . . Manual 35 | . 3 . . 20 12 . . . . Terminals 52 | . 3 . . 28 21 . . . . Fabricators 7 | . . . . . 7 . . . . Repair Stations 8 | . 2 . . 6 . . . . . Recycling Units 3 | . . . . . 3 . . . . Scanalyzers 6 | . . . . 6 . . . . . Garrison Access 1 | . . . . 1 . . . . . Terminal Hacks 25 | . . . 9 8 8 . . . . Record 8 | . . . 8 . . . . . . Part Schematic 1 | . . . . 1 . . . . . Robot Schematic 1 | . . . . . 1 . . . . Robot Analysis 2 | . . . . 2 . . . . . Prototype ID Bank 4 | . . . . 1 3 . . . . Branch Access Points 2 | . . . . 1 1 . . . . Terminal Index 2 | . . . . 1 1 . . . . Alert Level 1 | . . . . 1 . . . . . Unreport Threat 2 | . . . . . 2 . . . . Zone Layout 1 | . . . . 1 . . . . . Derelict Proto ID Bank 1 | . . . 1 . . . . . . Fabricator Hacks 3 | . . . . . 3 . . . . Network Status 1 | . . . . . 1 . . . . Load Schematic 1 | . . . . . 1 . . . . Build 1 | . . . . . 1 . . . . Repair Station Hacks 7 | . 2 . . 5 . . . . . Scan Component 4 | . 1 . . 3 . . . . . Repair 3 | . 1 . . 2 . . . . . Recycling Unit Hacks 1 | . . . . . 1 . . . . Retrieve Components 1 | . . . . . 1 . . . . Scanalyzer 4 | . . . . 4 . . . . . Insert Component 3 | . . . . 3 . . . . . Analyze 1 | . . . . 1 . . . . . Garrison Access Hacks 1 | . . . . 1 . . . . . Seal Access 1 | . . . . 1 . . . . . Unauthorized Hacks 11 | . 1 . . 4 6 . . . . Terminals 8 | . 1 . . 4 3 . . . . Botnet 4 | . . . . 2 2 . . . . Disrupt 1 | . . . . 1 . . . . . Operators 3 | . 1 . . 1 1 . . . . Fabricators 3 | . . . . . 3 . . . . Prioritize 1 | . . . . . 1 . . . . Fabnet 2 | . . . . . 2 . . . . Repair Stations . | . . . . . . . . . . Recycling Units . | . . . . . . . . . . Scanalyzers . | . . . . . . . . . . Garrison Access . | . . . . . . . . . . Data Cores Recovered . | . . . . . . . . . . Used . | . . . . . . . . . . Hacking Detections 25 | . 2 . . 11 12 . . . . Full Trace Events 3 | . . . . 1 2 . . . . Feedback Events . | . . . . . . . . . . Feedback Blocked . | . . . . . . . . . . Robot Schematics Acquired 5 | . . . . . 1 . . 4 . Robots Built . | . . . . . . . . . . Authchips . | . . . . . . . . . . Time . | . . . . . . . . . . Total Robot Build Rating . | . . . . . . . . . . Part Schematics Acquired 17 | . . . . 2 . . . 15 . Parts Built . | . . . . . . . . . . Authchips . | . . . . . . . . . . Time 36 | . . . . . 36 . . . . Total Part Build Rating . | . . . . . . . . . . Parts Repaired 3 | . 1 . . 2 . . . . . Time 212 | . 38 . . 174 . . . . . Parts Recycled . | . . . . . . . . . . Recycled Matter . | . . . . . . . . . . Retrieved Matter . | . . . . . . . . . . Retrieved Components 4 | . . . . . 4 . . . . Parts Scanalyzed 2 | . . . . 2 . . . . . Part Schematics Acquired 1 | . . . . 1 . . . . . Parts Damaged 1 | . . . . 1 . . . . . Bothacking | -11 -10 -10 -10 -8 -7 -7 -7 -7 -7 ------------ Run | Yrd Mat Min Sub Mat Fac Low Low Zio Dee Used RIF Installer . | . . . . . . . . . . Robots Hacked . | . . . . . . . . . . Non-combat . | . . . . . . . . . . Combat . | . . . . . . . . . . Robot Hacks Applied . | . . . . . . . . . . Relay Couplers Released . | . . . . . . . . . . Fabnet Peak Effective % . | . . . . . . . . . . Robots Rewired . | . . . . . . . . . . Allies Hacked . | . . . . . . . . . . Hacks Repelled . | . . . . . . . . . . Allies | -11 -10 -10 -10 -8 -7 -7 -7 -7 -7 -------- Run | Yrd Mat Min Sub Mat Fac Low Low Zio Dee Total Allies 7 | . . . . . . . . 7 . Largest Group 7 | . . . . . . . . 7 7 Highest-Rated Group 191 | . . . . . . . . 191 191 Highest-Rated Ally 31 | . . . . . . . . 31 31 Total Orders 2 | . . . . . . . . 2 . EXPLORE 1 | . . . . . . . . 1 . RETURN 1 | . . . . . . . . 1 . Ally Attacks 58 | . . . . . . . . . 58 Total Damage 695 | . . . . . . . . . 695 Kills 9 | . . . . . . . . . 9 Allies Corrupted . | . . . . . . . . . . Allies Melted . | . . . . . . . . . . Intel | -11 -10 -10 -10 -8 -7 -7 -7 -7 -7 ------- Run | Yrd Mat Min Sub Mat Fac Low Low Zio Dee Robot Analysis Total 2 | . . . . 2 . . . . . Derelict Logs Recovered 2 | . . 1 1 . . . . . . Drone Launches 1 | . . . . . . . . 1 . Drone Recoveries 1 | . . . . . . . . 1 . Exploration | -11 -10 -10 -10 -8 -7 -7 -7 -7 -7 ------------- Run | Yrd Mat Min Sub Mat Fac Low Low Zio Dee Turns Passed 10582 | 205 606 577 732 1358 2423 626 440 1558 2057 Spaces Moved 6652 | 120 355 418 495 676 1505 446 302 952 1383 Core 11 | 11 . . . . . . . . . Treads . | . . . . . . . . . . Legs 4549 | . . . . . 1466 446 302 952 1383 Wheels 2092 | 109 355 418 495 676 39 . . . . Hover . | . . . . . . . . . . Flight . | . . . . . . . . . . Fastest Speed 50 | 50 100 130 130 130 120 122 122 122 116 Average Speed 124 | 95 103 130 131 139 122 126 122 122 126 Slowest Speed 470 | 100 130 130 145 190 470 192 122 122 310 Overloaded Moves . | . . . . . . . . . . Propulsion Burnouts . | . . . . . . . . . . Robots Hopped . | . . . . . . . . . . Cave-ins Triggered . | . . . . . . . . . . Exploration Rate (%) 52 | 6 43 92 34 48 33 52 44 89 88 Regions Visited 9 Branch Regions 6 Pre-discovered Areas 4 | . . 1 1 . . . . 2 . Known Exits Taken 5 | . . . . 1 1 1 1 1 . Unknown Exits Taken 4 | 1 1 1 1 . . . . . . Scrap Searched 7 | . . 1 . . . 3 2 1 . Spaces Dug 50 | . . . . 22 14 1 1 4 8 Terrain Destroyed 155 | . 17 35 6 22 14 1 2 7 51 Melee 11 | . . . . 1 8 . . 1 1 Projectile 30 | . . . . . 6 1 2 6 15 AOE 114 | . 17 35 6 21 . . . . 35 Terrain Rammed . | . . . . . . . . . . Walls Destroyed . | . . . . . . . . . . Machines Disabled . | . . . . . . . . . . Actions | -11 -10 -10 -10 -8 -7 -7 -7 -7 -7 --------- Run | Yrd Mat Min Sub Mat Fac Low Low Zio Dee Total 8538 | 182 557 438 545 1022 1996 511 337 1322 1628 Wait 1201 | 13 139 3 19 213 313 51 6 333 111 Move 6643 | 119 354 417 494 675 1504 445 301 951 1383 Hop . | . . . . . . . . . . Pick Up 109 | 12 20 5 4 25 18 4 1 2 18 Fast Attach 54 | 7 1 . 2 4 19 1 1 4 15 Attach 36 | . 1 . 2 5 14 2 3 . 9 Detach 16 | . 1 . . 1 10 . 1 . 3 Swap 60 | 1 5 3 3 14 18 1 . 2 13 Drop 136 | 4 12 1 3 29 45 6 2 6 28 Fire 262 | 26 24 9 16 55 40 1 22 22 47 Melee 21 | . . . 2 1 15 . . 2 1 Ram . | . . . . . . . . . . Kick . | . . . . . . . . . . Crush . | . . . . . . . . . . Escape Stasis . | . . . . . . . . . . Rewire . | . . . . . . . . . . Trap . | . . . . . . . . . . Miscellaneous . | . . . . . . . . . . Route ------- -11/Scrapyard -10/Materials (discovered 2 exits: [*Min x2]) -10/Mines (discovered 3 exits: [*Mat x2] / *Sub) -10/Subcaves -8/Materials -7/Factory (discovered 3 exits: *Fac / *Low x2) -7/Lower Caves -7/Lower Caves -7/Zion (discovered 2 exits: *Dee / [*Pro]) -7/Deep Caves (discovered 1 exit: *Pro) History --------- Turn | Location | Event 2 | -11/Scrapyard | Met Revision 17 27 | -11/Scrapyard | Discovered new exit (range 16) 206 | -11/Scrapyard | Entered Materials 310 | -10/Materials | Discovered new exit (range 9) 316 | -10/Materials | Build established: Mutant 596 | -10/Materials | Repaired Imp. Heat Sink 616 | -10/Materials | Discovered new exit (range 9) 812 | -10/Materials | Entered Mines 864 | -10/Mines | Discovered new exit (range 8) 1096 | -10/Mines | Found a hidden stash of uninstalled traps 1143 | -10/Mines | Discovered new exit (range 13) 1262 | -10/Mines | Found a damaged Exp. Sensor Array with a note attached 1264 | -10/Mines | Found Prototype Device 1278 | -10/Mines | Identified Exp. Sensor Array 1305 | -10/Mines | Learned location of Zion (-7) 1367 | -10/Mines | Discovered new exit (range 9) 1389 | -10/Mines | Entered Subcaves 1680 | -10/Subcaves | Visited 4L-MR0's lab 1702 | -10/Subcaves | Found Cargo Legs 1956 | -10/Subcaves | Lost 3 parts (2p1w) 2015 | -10/Subcaves | Shifting Twisted Machinery released Battle Rifle 2017 | -10/Subcaves | Shifting Twisted Machinery released Sub. Machine Gun 2092 | -10/Subcaves | Discovered new exit (range 15) 2121 | -10/Subcaves | Entered Materials 2121 | -8/Materials | Evolved 4 slots: Propulsion x2, Utility x2 2711 | -8/Materials | Build established: Scavenger-Mutant 3022 | -8/Materials | Repaired Broken Exp. Sensor Array? 3137 | -8/Materials | Central database locked down 3356 | -8/Materials | Repaired Imp. Heat Sink 3386 | -8/Materials | Discovered new exit (range 8) 3476 | -8/Materials | Identified exit to Factory 3479 | -8/Materials | Entered Factory 3479 | -7/Factory | Evolved 2 slots: Utility x2 3901 | -7/Factory | Build established: Assassin 5155 | -7/Factory | Build established: Scavenger-Skirmisher 5200 | -7/Factory | Identified exit to Lower Caves 5615 | -7/Factory | Discovered new exit (range 9) 5633 | -7/Factory | Identified exit to Factory 5902 | -7/Factory | Entered Lower Caves 6307 | -7/Lower Caves | Encountered a Warlord checkpoint 6392 | -7/Lower Caves | Discovered new exit (range 10) 6440 | -7/Lower Caves | Identified exit to Lower Caves 6528 | -7/Lower Caves | Entered another Lower Caves area 6948 | -7/Lower Caves | Discovered new exit (range 15) 6965 | -7/Lower Caves | Identified exit to Zion 6968 | -7/Lower Caves | Entered Zion 7005 | -7/Zion | System corruption cleaned by Quarantine Array 7064 | -7/Zion | Given A8's code to call for help 7248 | -7/Zion | Gained Derelict followers 7283 | -7/Zion | Discovered new exit (range 15) 7425 | -7/Zion | Received a hallucinogenic algorithm 7468 | -7/Zion | Learned location of Warlord (-5) 7474 | -7/Zion | Given the Hacking Drone Bay 7475 | -7/Zion | Found Prototype Device 7475 | -7/Zion | Identified Hacking Drone Bay 7562 | -7/Zion | Learned Factory repair station intel 7625 | -7/Zion | Learned location of Data Miner (-6) 7781 | -7/Zion | Build established: Mutant 8067 | -7/Zion | Gained Derelict followers 8312 | -7/Zion | Discovered new exit (range 10) 8463 | -7/Zion | Build established: Skirmisher 8500 | -7/Zion | Identified exit to Deep Caves 8507 | -7/Zion | Saw the warning signs outside the Deep Caves entrance 8526 | -7/Zion | Entered Deep Caves 8526 | -7/Deep Caves | Accompanied by 7 allies 8855 | -7/Deep Caves | Attacked by Z-Imprinter 8881 | -7/Deep Caves | Allies destroyed Z-Imprinter 8906 | -7/Deep Caves | Lost 6 allies 8948 | -7/Deep Caves | Z-Facility disabled 9315 | -7/Deep Caves | Found Prototype Protection 9315 | -7/Deep Caves | Identified Zio. Weapon Casing 9397 | -7/Deep Caves | Found Zio. Weapon Casing 9626 | -7/Deep Caves | Found Prototype Protection 9626 | -7/Deep Caves | Identified Zio. Heavy Carapace 9631 | -7/Deep Caves | Found Zio. Weapon Casing 9634 | -7/Deep Caves | Lost 5 parts (1n3u1w) 9901 | -7/Deep Caves | Build established: Mutant 10103 | -7/Deep Caves | Discovered new exit (range 7) 10109 | -7/Deep Caves | Identified exit to Proximity Caves 10526 | -7/Deep Caves | Spotted AG-43878 10561 | -7/Deep Caves | Core integrity fell below 50% 10574 | -7/Deep Caves | Core integrity fell below 20% 10583 | -7/Deep Caves | Destroyed by AG-43878 with Assembled Focal Cannon Last Messages --------------- 10527_ AG-43878: "DSI9AT1D G8OHIBQ29FWG 26R186 QD12WHW8W33 TDK1 81FTS" 10551_ Zio. Light Carapace destroyed. 10560_ Imp. Titanium Leg destroyed. 10561_ Overheating: Energy bleed (-13). 10564_ AG-43878 suffers critical hit (Intensify). 10566_ Overheating: System interference. 10566_ Imp. Signal Interpreter temporarily disabled. 10566_ Zio. Phaser-S temporarily disabled. 10570_ Zio. Weapon Casing destroyed. 10573_ Zio. Composite Leg I destroyed. 10573_ Zio. Laser-S destroyed. 10575_ Overheating: System interference. 10575_ Imp. Heat Sink temporarily disabled. 10577_ Carbon-fiber Leg destroyed. 10577_ Imp. Heat Sink destroyed. 10577_ Zio. Phaser-S destroyed. 10583_ Zio. Light DM Reactor destroyed. Map ----- +----------------------------------------------------+ | ??????????? ??# #??## # | | ?????????? ### ##### ##### # | | ?????????? # "" #######???# # | | ?????????? ] ##### #?????????# # | | ?????????? == ##### ##????????# # | | ?????????? = #?## ##???????# # | | ?????????? ###??# ##??????# # | | ?????????? / ##???# ##?????# # | | ?????????? = #???### #???### # | | ?????????? = = / #?????## ##### | | ?????????? = / #??????# ## | | ?????????? = == /! #??????# ##> # ## | | ?????????? = #??????# #########? | | ?????????? ! #??????# #????????? | | ?????????? l ##?????# #????##### | | ?????????? * ! ;#?????# ##???## | | ?????????? #?????# #????# | | ?????????? #?????# #???## | | ????????? #?????# #???# | | ????????? s * ! ####### ##??# | | ????????? * h ##??# | | ????????""" * ! ! #### | | ????????" h ## | | ?????????" ###### | | ????????" #??## | | ?????????" @ ##??# | | ????????" #G; #???## ## | | ????????" #### ## ;; ##????### ######### | | ????????""" ???????# ?# ####???????######???????# | | ???????????????????#??# #???????????????????????? | | ??????????????????????###???????????????????????? | | | | | | | | | | | | | | | | | | | | | | | | | | | | | | | | | | | | | | | +----------------------------------------------------+ Best States ------------- Heat Dissipation 62 Energy Generation 27 Energy Capacity 890 Matter Stores 300 Matter Capacity 300 Sight Range 20 Robot Scan Range 20 Terrain Scan Range 16 Terrain Scan Density 210 Armor Coverage 1200 Weapon Shielding 100 Evasion (%) 55 Offensive Hacking 11 Item Schematics ----------------- Hacking Suite | -8/Materials | Scanalyzed Hcp. Storage Unit | -8/Materials | Hacked Lightning Gun | -7/Zion | Archive Magnetic Acceleration Cannon | -7/Zion | Archive Arc Thrower | -7/Zion | Archive Adv. Terrain Scan Processor | -7/Zion | Archive Fusion Compressor | -7/Zion | Archive Power Maul | -7/Zion | Archive Lrn. Proton Cannon | -7/Zion | Archive Power Amplifier | -7/Zion | Archive Mak. Axe | -7/Zion | Archive Spear | -7/Zion | Archive Hvy. Plasma Cannon | -7/Zion | Archive Imp. Cooling System | -7/Zion | Archive Phase Shifter | -7/Zion | Archive Energy Filter | -7/Zion | Archive Adv. Hacking Suite | -7/Zion | Archive Robot Schematics ------------------ L-41 Fighter | -7/Factory | Hacked W-25 Informer | -7/Zion | Archive S-27 Virus | -7/Zion | Archive O-24 Administrator | -7/Zion | Archive H-77 Assassin | -7/Zion | Archive Fabricated ------------ Nothing Alien Tech Used ----------------- None Achievements -------------- Are We The Baddies? Challenges ------------ None Game ------ Seed ImprinterAuthchipBattery Manual? 0 Play Time 01:40:50 Cumulative 215.3 hours Start 2024.06.21 @ 14:48:43 End 2024.06.21 @ 17:41:05 Sessions 1 Manual Loads 0 Difficulty Rogue Special Mode None Game No. 121 Rogue 121 Adventurer 0 Explorer 0 Win Type - Total 3 Types 3/0/0/0/0/0/0/0/0 Lore% 57 Gallery% 63 Achievement% 54 Wizard Run 0 Options --------- Layout 1 ASCII 0 Keyboard 1 Movement Vi Keybinds 0 Fullscreen 2 Font 24/Smallcaps Map View 50x35 Zoom Use 0% Tactical HUD 1 Map Filters NONE Filters NONE Steam 1 RUN: 792cf40f-d777-4454-8585-90844635efb3